bitfinex-derivatives/quotes_SOLF0:USTF0_20250924
["timestamp","ask_amount","ask_price","bid_price","bid_amount"]
[1758690770390,26.54328149,208.1,207.97,8.0]
[1758690770586,12.2136,208.1,207.97,8.0]
[1758690770796,12.2136,208.1,207.98,8.0]
[1758690771098,12.2136,208.1,207.99,59.66]
[1758690771297,12.2136,208.1,207.99,63.9856]
[1758690771495,12.2136,208.1,208.0,8.0]
[1758690772298,7.89,208.1,208.02,8.0]
[1758690772599,73.88,208.16,208.03,8.0]
[1758690772600,7.89,208.14,208.03,8.0]
[1758690772801,1.2017434,208.13,208.06,8.0]
[1758690773098,7.89,208.14,208.06,8.0]
[1758690774499,1.20177243,208.13,208.06,8.0]
[1758690774698,7.89,208.14,208.06,8.0]
[1758690774902,1.20179861,208.13,208.06,8.0]
[1758690775101,7.89,208.14,208.06,8.0]
[1758690775403,1.20177226,208.13,208.06,8.0]
[1758690775600,22.33196099,208.18,208.06,8.0]
[1758690775796,1.20167006,208.17,208.06,8.0]
[1758690775996,1.20167006,208.16,208.06,8.0]
[1758690776200,22.33196099,208.18,208.07,7.96]
[1758690776400,1.20158343,208.17,208.07,7.96]
[1758690776601,1.20158343,208.16,208.07,7.96]
[1758690776802,22.33196099,208.18,208.07,7.96]
[1758690776993,7.93,208.16,208.07,7.96]
[1758690777401,4.3226,208.14,208.07,7.96]
[1758690778607,5.62355495,208.14,208.07,7.96]
[1758690780613,13.55355495,208.14,208.07,7.96]
[1758690780812,12.253,208.12,208.07,7.96]
[1758690781010,7.93,208.12,208.07,7.96]
[1758690781203,7.93,208.12,208.06,7.96]
[1758690781402,1.30095495,208.14,208.06,7.96]
[1758690781403,1.30095495,208.17,208.06,9.26095495]
[1758690781812,1.30095495,208.17,208.1,7.96]
[1758690783612,18.43766704,208.19,208.1,7.96]
[1758690783815,9.23095495,208.17,208.1,7.96]
[1758690784010,1.20159357,208.16,208.1,7.96]
[1758690784311,9.23095495,208.17,208.1,7.96]
[1758690785013,9.13161249,208.16,208.06,9.26095495]
[1758690785209,1.30095495,208.14,208.06,9.26095495]
[1758690785415,67.2292,208.18,208.06,9.26095495]
[1758690785416,1.30095495,208.12,208.06,7.96]
[1758690786103,7.93,208.11,208.01,7.96]
[1758690786511,4.3234,208.1,208.01,7.96]
[1758690786714,7.93,208.11,208.03,7.96]
[1758690786921,1.30095495,208.12,208.03,7.96]
[1758690787215,9.23095495,208.15,208.05,1.30095495]
[1758690787410,9.23095495,208.15,208.06,7.96]
[1758690788821,4.3228,208.13,208.06,7.96]
[1758690790016,1.30095495,208.12,208.06,7.96]
[1758690790214,4.3232,208.11,208.06,7.96]
[1758690790412,12.2532,208.11,208.06,7.96]
[1758690791314,7.93,208.11,208.06,7.96]
[1758690791619,1.30095495,208.12,208.04,7.96]
[1758690792114,5.62395495,208.12,208.04,7.96]
[1758690793018,1.30095495,208.12,208.04,7.96]
[1758690793818,1.30095495,208.13,208.04,7.96]
[1758690794119,9.23095495,208.15,208.06,7.68]
[1758690795115,7.93,208.15,208.06,7.68]
[1758690795314,81.30148775,208.19,208.07,7.68]
[1758690795315,1.30095495,208.17,208.07,7.68]
[1758690796220,8.07,208.15,208.07,7.68]
[1758690796922,1.30095495,208.14,208.07,7.68]
[1758690797823,5.62355495,208.14,208.07,7.68]
[1758690798528,9.37095495,208.11,208.03,7.68]
[1758690799025,4.3234,208.1,208.03,7.68]
[1758690799423,9.37095495,208.11,208.03,7.68]
[1758690800026,13.69415495,208.11,208.03,7.68]
[1758690800620,5.62415495,208.11,208.03,7.68]
[1758690800927,4.3226,208.14,208.05,7.68]
[1758690801419,8.07,208.16,208.08,7.68]
[1758690804025,4.3219,208.17,208.1,9.30095495]
[1758690804229,4.3215,208.19,208.1,9.30095495]
[1758690804433,7.49,208.2,208.14,8.0]
[1758690805530,7.49,208.23,208.14,8.0]
[1758690805729,1.20134659,208.22,208.14,8.0]
[1758690806033,1.20134659,208.21,208.14,8.0]
[1758690806331,7.49,208.23,208.14,8.0]
[1758690806531,1.20134589,208.22,208.14,8.0]
[1758690806729,7.49,208.23,208.14,8.0]
[1758690806931,5.52223652,208.22,208.14,12.3225]
[1758690807132,4.3209,208.22,208.14,12.3225]
[1758690807524,4.3209,208.22,208.16,1.30095495]
[1758690807834,4.3205,208.24,208.17,8.0]
[1758690808029,1.20124967,208.23,208.17,8.0]
[1758690808230,0.83621684,208.25,208.18,1.30095495]
[1758690808432,1.20124898,208.24,208.18,1.30095495]
[1758690808631,1.20124898,208.23,208.18,1.30095495]
[1758690808837,0.83621684,208.25,208.18,9.30095495]
[1758690809037,1.20120474,208.24,208.18,9.30095495]
[1758690809234,1.20120474,208.23,208.19,8.0]
[1758690809439,0.83621684,208.25,208.18,9.30095495]
[1758690809641,1.20120457,208.24,208.18,9.30095495]
[1758690809936,1.20120457,208.23,208.18,1.30095495]
[1758690810141,0.83621684,208.25,208.18,9.30095495]
[1758690810440,1.20120457,208.24,208.18,9.30095495]
[1758690810740,1.20120457,208.23,208.19,8.0]
[1758690811043,0.83621684,208.25,208.19,8.0]
[1758690811243,1.20116128,208.24,208.19,8.0]
[1758690811441,1.20116128,208.23,208.19,8.0]
[1758690811642,0.83621684,208.25,208.19,8.0]
[1758690811845,1.20116128,208.24,208.18,9.30095495]
[1758690812032,1.20116128,208.23,208.19,8.0]
[1758690812238,0.83621684,208.25,208.19,8.0]
[1758690812535,1.20116146,208.24,208.18,9.30095495]
[1758690812735,1.20116146,208.23,208.19,8.0]
[1758690812933,4.3205,208.24,208.19,8.0]
[1758690813132,8.69119537,208.23,208.15,1.30095495]
[1758690813338,1.20119537,208.22,208.19,1.30095495]
[1758690813539,0.83621684,208.25,208.2,8.0]
[1758690813737,1.20112754,208.24,208.19,1.30095495]
[1758690813940,1.20112754,208.23,208.19,1.30095495]
[1758690814141,1.20112754,208.22,208.2,8.0]
[1758690814342,7.49,208.27,208.2,8.0]
[1758690814549,1.20113513,208.26,208.2,8.0]
[1758690814849,1.20113513,208.25,208.19,9.30095495]
[1758690815041,1.20113513,208.24,208.2,8.0]
[1758690815345,11.8098,208.27,208.2,8.0]
[1758690815346,1.20113513,208.23,208.2,8.0]
[1758690815547,1.20113513,208.22,208.2,8.0]
[1758690815741,4.3202,208.26,208.2,8.0]
[1758690815937,8.69115209,208.25,208.2,8.0]
[1758690816135,1.20115209,208.24,208.2,8.0]
[1758690816340,1.20115209,208.23,208.2,8.0]
[1758690816536,1.20115209,208.22,208.2,8.0]
[1758690816737,7.49,208.25,208.2,8.0]
[1758690816937,1.20113513,208.24,208.2,8.0]
[1758690817141,1.20113513,208.23,208.2,8.0]
[1758690817348,7.49,208.25,208.2,8.0]
[1758690817544,1.20111818,208.24,208.2,8.0]
[1758690817744,8.69111818,208.23,208.12,9.30095495]
[1758690817947,1.20111818,208.22,208.14,1.30095495]
[1758690818148,1.20111818,208.22,208.15,8.0]
[1758690819749,5.52221818,208.22,208.15,8.0]
[1758690820048,1.20111818,208.21,208.15,8.0]
[1758690820443,1.20111818,208.2,208.14,1.30095495]
[1758690820646,1.20111818,208.19,208.15,8.0]
[1758690820847,7.49,208.23,208.15,8.0]
[1758690821043,1.20130973,208.22,208.15,8.0]
[1758690821244,1.20130973,208.21,208.15,8.0]
[1758690821444,1.20130973,208.2,208.15,8.0]
[1758690821645,7.49,208.23,208.15,8.0]
[1758690821846,4.3213,208.21,208.15,8.0]
[1758690822048,1.2012758,208.2,208.15,8.0]
[1758690822248,4.3213,208.21,208.15,8.0]
[1758690823151,7.49,208.23,208.15,8.0]
[1758690823152,11.8107,208.23,208.15,12.3223]
[1758690823353,1.20119446,208.22,208.15,13.62325495]
[1758690823541,1.20114341,208.21,208.15,9.30095495]
[1758690823748,7.49,208.23,208.15,8.0]
[1758690824050,1.20121125,208.22,208.15,8.0]
[1758690824252,1.20121125,208.21,208.15,8.0]
[1758690824454,7.49,208.23,208.15,8.0]
[1758690824654,1.20121125,208.22,208.15,8.0]
[1758690824854,5.52231125,208.21,208.15,8.0]
[1758690825048,4.3211,208.21,208.15,8.0]
[1758690825956,11.8107,208.23,208.15,9.30095495]
[1758690826156,1.20115826,208.22,208.15,9.30095495]
[1758690826449,4.3207,208.23,208.15,13.62315495]
[1758690826652,4.3203,208.25,208.18,8.0]
[1758690826956,1.20110305,208.24,208.18,8.0]
[1758690827152,4.3203,208.25,208.18,8.0]
[1758690827456,1.20110252,208.24,208.18,8.0]
[1758690827653,4.3207,208.23,208.17,1.30095495]
[1758690828448,4.3207,208.23,208.18,8.0]
[1758690828849,4.3207,208.23,208.17,1.30095495]
[1758690829450,4.3202,208.26,208.17,1.30095495]
[1758690829758,24.34178368,208.28,208.19,9.30095495]
[1758690829759,1.20103453,208.25,208.19,9.30095495]
[1758690830060,24.34178368,208.28,208.19,9.30095495]
[1758690830253,1.20099941,208.27,208.19,9.30095495]
[1758690830451,1.20099941,208.26,208.19,9.30095495]
[1758690830758,4.3204,208.25,208.19,9.30095495]
[1758690833655,4.3204,208.25,208.19,8.0]
[1758690834463,7.98,208.24,208.16,7.99]
[1758690834760,1.20113202,208.23,208.16,7.99]
[1758690834955,4.3209,208.22,208.16,7.99]
[1758690835760,4.3209,208.22,208.16,9.29095495]
[1758690836962,7.98,208.24,208.16,9.29095495]
[1758690837168,7.98,208.22,208.16,7.99]
[1758690837460,7.98,208.2,208.16,7.99]
[1758690837657,4.3211,208.21,208.13,1.30095495]
[1758690837963,7.98,208.23,208.14,7.99]
[1758690838262,1.20118091,208.22,208.14,7.99]
[1758690838564,7.98,208.2,208.14,7.99]
[1758690839863,4.3217,208.18,208.14,7.99]
[1758690840063,7.98,208.25,208.11,7.99]
[1758690840264,1.20122419,208.24,208.13,7.99]
[1758690840565,1.20122419,208.23,208.13,7.99]
[1758690840859,7.98,208.25,208.13,7.99]
[1758690841055,1.20112748,208.24,208.13,7.99]
[1758690841366,1.20112748,208.23,208.13,7.99]
[1758690841658,7.98,208.25,208.13,7.99]
[1758690841865,4.3208,208.23,208.14,7.99]
[1758690842359,1.20112951,208.22,208.14,7.99]
[1758690842561,9.18119735,208.21,208.14,7.99]
[1758690842764,1.20119735,208.2,208.14,7.99]
[1758690843869,7.98,208.19,208.1,7.99]
[1758690844166,4.3219,208.17,208.1,7.99]
[1758690848568,7.98,208.19,208.1,7.99]
[1758690848773,1.20133825,208.18,208.1,7.99]
[1758690848969,1.20133825,208.17,208.1,7.99]
[1758690849175,7.98,208.23,208.1,7.99]
[1758690849472,1.20128596,208.22,208.1,7.99]
[1758690849667,1.20128596,208.21,208.1,7.99]
[1758690849876,5.52258596,208.2,208.1,7.99]
[1758690850078,1.20128596,208.19,208.1,7.99]
[1758690850277,1.20128596,208.18,208.1,7.99]
[1758690850477,4.3213,208.2,208.1,7.99]
[1758690850677,4.3217,208.18,208.1,7.99]
[1758690850884,1.20132748,208.17,208.1,7.99]
[1758690851183,4.3217,208.18,208.1,7.99]
[1758690851483,1.20131121,208.17,208.1,7.99]
[1758690851677,4.3217,208.18,208.1,7.99]
[1758690851878,1.20131121,208.17,208.1,7.99]
[1758690852080,4.3221,208.16,208.1,7.99]
[1758690852285,7.98,208.14,208.06,11.02283]
[1758690852480,1.20138517,208.13,208.06,11.02283]
[1758690852680,4.3231,208.12,208.06,11.02283]
[1758690852880,1.20167334,208.11,208.06,3.03283]
[1758690853182,12.3031,208.12,208.07,7.99]
[1758690853383,67.2358,208.16,208.06,3.03283]
[1758690853384,1.2016569,208.11,208.06,3.03283]
[1758690853587,7.64,208.16,208.07,7.45]
[1758690853880,1.20155216,208.15,208.07,7.45]
[1758690854085,1.20155216,208.14,208.07,7.45]
[1758690854284,1.20155216,208.13,208.07,7.45]
[1758690854481,7.64,208.16,208.07,7.45]
[1758690854674,7.64,208.2,208.1,2.03141707]
[1758690854885,1.20137869,208.19,208.12,7.45]
[1758690855078,1.20137869,208.18,208.12,7.45]
[1758690855284,7.64,208.2,208.12,7.45]
[1758690855485,1.2012823,208.19,208.12,7.45]
[1758690855782,1.2012823,208.18,208.12,7.45]
[1758690855985,7.64,208.2,208.12,7.45]
[1758690856184,1.20129934,208.19,208.12,7.45]
[1758690856487,1.20129934,208.18,208.12,7.45]
[1758690856680,7.64,208.2,208.12,7.45]
[1758690856880,1.20128221,208.19,208.12,7.45]
[1758690857077,1.20128221,208.18,208.12,7.45]
[1758690857277,7.64,208.2,208.12,7.45]
[1758690857483,1.20126524,208.19,208.12,7.45]
[1758690857686,1.20126524,208.18,208.12,7.45]
[1758690857885,7.64,208.2,208.12,7.45]
[1758690858077,1.20126524,208.19,208.12,7.45]
[1758690858273,1.20126524,208.18,208.12,7.45]
[1758690858478,7.64,208.2,208.12,7.45]
[1758690858780,1.20126524,208.19,208.12,7.45]
[1758690858979,1.20126524,208.18,208.12,7.45]
[1758690859181,7.64,208.2,208.12,7.45]
[1758690859483,1.20125588,208.19,208.12,7.45]
[1758690859683,7.64,208.2,208.12,7.45]
[1758690859884,1.20122196,208.19,208.12,7.45]
[1758690860085,7.64,208.2,208.12,7.45]
[1758690860384,1.20122196,208.19,208.12,7.45]
[1758690860586,7.64,208.2,208.12,7.45]
[1758690860788,1.20122196,208.19,208.12,7.45]
[1758690860988,4.3215,208.19,208.12,7.45]
[1758690861189,1.20128221,208.18,208.12,7.45]
[1758690861388,1.20128221,208.17,208.13,7.45]
[1758690861690,7.64,208.17,208.13,7.45]
[1758690862084,7.64,208.17,208.11,7.45]
[1758690862390,4.3215,208.19,208.11,7.45]
[1758690862588,1.20129934,208.18,208.11,7.45]
[1758690862791,1.20129934,208.17,208.11,7.45]
[1758690862988,4.3215,208.19,208.11,7.45]
[1758690863189,1.20130676,208.18,208.11,7.45]
[1758690863486,4.3215,208.19,208.11,7.45]
[1758690863681,1.2012898,208.18,208.11,7.45]
[1758690863888,4.3215,208.19,208.11,7.45]
[1758690864192,1.20128997,208.18,208.11,7.45]
[1758690864488,4.3215,208.19,208.11,7.45]
[1758690864690,1.20128997,208.18,208.11,7.45]
[1758690864886,4.3215,208.19,208.11,7.45]
[1758690865082,4.321,208.22,208.13,4.3225]
[1758690865287,1.20123732,208.21,208.14,7.82]
[1758690865490,1.20123732,208.2,208.14,7.82]
[1758690865690,7.59,208.22,208.14,7.82]
[1758690865891,1.20118539,208.21,208.14,7.82]
[1758690866194,1.20118539,208.2,208.14,7.82]
[1758690868387,7.59,208.19,208.1,4.02908044]
[1758690868592,1.20118539,208.18,208.1,7.82]
[1758690869890,4.3221,208.17,208.1,7.82]
[1758690870090,1.20118539,208.16,208.1,7.82]
[1758690870393,4.3223,208.15,208.08,65.0036]
[1758690870590,4.3223,208.15,208.09,7.82]
[1758690870786,1.20152393,208.14,208.09,7.82]
[1758690870983,4.3223,208.15,208.09,7.82]
[1758690871291,1.20154088,208.14,208.1,7.82]
[1758690871489,11.9123,208.15,208.1,7.82]
[1758690872595,7.59,208.2,208.09,2.03141707]
[1758690872795,1.20127437,208.19,208.1,7.82]
[1758690872992,7.59,208.2,208.1,7.82]
[1758690873193,1.20127376,208.19,208.1,4.3233]
[1758690873394,7.59,208.2,208.11,7.82]
[1758690873696,1.20132459,208.19,208.11,7.82]
[1758690873892,7.59,208.2,208.11,7.82]
[1758690874093,1.20130765,208.19,208.11,7.82]
[1758690874394,7.59,208.2,208.11,7.82]
[1758690874590,1.2012907,208.19,208.11,7.82]
[1758690874796,4.3217,208.19,208.11,7.82]
[1758690875096,7.59,208.2,208.11,7.82]
[1758690875598,1.20128106,208.19,208.11,127.58]
[1758690875800,11.9115,208.2,208.11,127.58]
[1758690876001,11.9115,208.2,208.11,119.76]
[1758690876204,1.20128048,208.19,208.12,7.82]
[1758690876391,11.9115,208.2,208.12,7.82]
[1758690876693,4.3217,208.18,208.12,7.82]
[1758690880900,4.3212,208.21,208.12,7.82]
[1758690881101,8.79129016,208.2,208.12,7.82]
[1758690881300,1.20129016,208.19,208.12,7.82]
[1758690882894,5.52279016,208.19,208.12,7.82]
[1758690883095,1.20129016,208.18,208.12,7.82]
[1758690884301,11.9119,208.17,208.12,7.82]
[1758690884898,4.3219,208.17,208.12,7.82]
[1758690885099,1.20136005,208.16,208.11,119.72]
[1758690885302,7.59,208.2,208.12,7.82]
[1758690885500,1.20130978,208.19,208.12,7.82]
[1758690885702,1.20130978,208.18,208.12,7.82]
[1758690885902,1.20130978,208.17,208.11,119.72]
[1758690886206,11.9115,208.2,208.12,7.82]
[1758690886410,1.20126592,208.19,208.12,7.82]
[1758690886704,1.20126476,208.18,208.12,7.82]
[1758690886906,1.20126476,208.17,208.12,7.82]
[1758690887108,74.7998,208.24,208.12,7.82]
[1758690887301,1.20126476,208.23,208.12,7.82]
[1758690887605,1.20126476,208.22,208.12,7.82]
[1758690887807,7.59,208.2,208.12,7.82]
[1758690888000,1.20126476,208.19,208.12,7.82]
[1758690888201,7.59,208.2,208.12,7.82]
[1758690888202,1.20126476,208.18,208.12,7.82]
[1758690888404,1.20126476,208.17,208.12,7.82]
[1758690888603,7.59,208.2,208.12,7.82]
[1758690888904,1.20126476,208.19,208.12,7.82]
[1758690889104,1.20126476,208.18,208.12,7.82]
[1758690889308,1.20126476,208.17,208.12,7.82]
[1758690889509,11.9113,208.2,208.12,7.82]
[1758690889697,1.20126476,208.19,208.12,7.82]
[1758690889902,1.20126476,208.18,208.12,7.82]
[1758690890208,1.20126476,208.17,208.12,7.82]
[1758690890410,11.9113,208.2,208.12,7.82]
[1758690890705,1.20126476,208.19,208.12,7.82]
[1758690890907,1.20126476,208.18,208.12,7.82]
[1758690891106,1.20126476,208.17,208.11,123.74908044]
[1758690891307,4.3217,208.19,208.12,7.82]
[1758690891508,1.20126476,208.18,208.13,119.7]
[1758690891808,1.20126476,208.17,208.15,7.82]
[1758690892008,4.3217,208.19,208.15,7.82]
[1758690892207,1.20123163,208.18,208.14,7.82]
[1758690892405,4.3217,208.19,208.13,119.7]
[1758690892605,1.20123163,208.18,208.15,7.82]
[1758690892806,4.3217,208.19,208.15,7.82]
[1758690892999,1.20123163,208.18,208.15,7.82]
[1758690893207,4.3217,208.19,208.13,119.7]
[1758690893406,1.20123163,208.18,208.14,8.08]
[1758690893702,4.3217,208.19,208.14,8.08]
[1758690894008,1.20123127,208.18,208.14,8.08]
[1758690894208,7.59,208.2,208.14,8.08]
[1758690894410,1.20123084,208.19,208.14,8.08]
[1758690894603,1.20123084,208.18,208.15,8.08]
[1758690894804,7.59,208.2,208.14,8.08]
[1758690895004,1.20123084,208.19,208.15,8.08]
[1758690895215,1.20123084,208.18,208.15,8.08]
[1758690895506,1.20128172,208.17,208.15,8.08]
[1758690895709,4.3215,208.19,208.15,8.08]
[1758690895910,1.20126512,208.18,208.15,8.08]
[1758690896106,1.20126512,208.17,208.14,8.08]
[1758690896307,4.3215,208.19,208.14,8.08]
[1758690896502,1.20126512,208.18,208.14,8.08]
[1758690896705,1.20126512,208.17,208.14,8.08]
[1758690896905,4.3215,208.19,208.14,8.08]
[1758690897210,1.20126494,208.18,208.14,8.08]
[1758690897406,4.321,208.22,208.14,8.08]
[1758690897601,1.20116857,208.21,208.14,8.08]
[1758690897912,1.20116857,208.2,208.14,8.08]
[1758690898110,1.20116857,208.19,208.13,123.72908044]
[1758690898307,7.78,208.23,208.14,8.08]
[1758690898616,1.20116839,208.22,208.14,12.10908044]
[1758690898812,1.20116839,208.21,208.14,12.10908044]
[1758690899009,1.20116839,208.2,208.14,12.10908044]
[1758690899213,7.78,208.23,208.14,12.10908044]
[1758690899512,1.2010806,208.22,208.14,12.10908044]
[1758690899713,1.2010806,208.21,208.15,8.08]
[1758690899911,1.2010806,208.2,208.15,8.08]
[1758690900309,75.0141,208.16,208.09,4.02908044]
[1758690900608,9.0811111,208.14,208.07,8.08]
[1758690900808,1.2010806,208.13,208.07,8.08]
[1758690901116,4.3231,208.12,208.07,8.08]
[1758690901317,1.3011111,208.18,208.07,9.3811111]
[1758690901519,1.20143277,208.17,208.1,12.10908044]
[1758690901710,1.20143277,208.16,208.11,119.66]
[1758690901909,4.3219,208.17,208.11,119.66]
[1758690902214,1.3011111,208.18,208.12,8.08]
[1758690902418,1.20132714,208.17,208.12,8.08]
[1758690902717,1.3011111,208.22,208.12,4.02908044]
[1758690902912,1.20119544,208.21,208.13,12.4026]
[1758690903215,1.20119544,208.2,208.14,9.3811111]
[1758690903509,1.20119544,208.19,208.15,8.08]
[1758690903718,5.15581638,208.28,208.17,9.3811111]
[1758690903912,1.20091285,208.27,208.18,4.02908044]
[1758690904111,0.83611638,208.28,208.19,8.08]
[1758690904112,1.20091285,208.26,208.19,8.08]
[1758690904309,1.20091285,208.25,208.19,8.08]
[1758690904509,0.83611638,208.28,208.19,8.08]
[1758690904709,7.78,208.24,208.17,5.33019154]
[1758690904907,1.20093098,208.23,208.17,1.3011111]
[1758690905111,7.78,208.24,208.18,8.08]
[1758690905611,4.3207,208.23,208.17,9.3811111]
[1758690906216,7.78,208.24,208.17,76.1211111]
[1758690907915,12.1005,208.24,208.17,76.1211111]
[1758690908120,0.83611638,208.28,208.2,9.3811111]
[1758690909215,74.9786,208.27,208.18,95.62]
[1758690910021,7.78,208.23,208.16,4.02908044]
[1758690910224,9.0811111,208.21,208.12,12.10908044]
[1758690910519,9.0811111,208.21,208.12,8.08]
[1758690911819,7.78,208.15,208.1,5.33019154]
[1758690912024,75.0108,208.17,208.07,6.05633875]
[1758690912217,12.102,208.17,208.08,8.08]
[1758690912417,9.0811111,208.21,208.11,12.10908044]
[1758690912725,9.0811111,208.21,208.11,8.08]
[1758690913817,4.3215,208.19,208.11,8.08]
[1758690914922,4.3215,208.19,208.13,1.3011111]
[1758690917526,7.78,208.21,208.14,7.39]
[1758690918829,4.3211,208.22,208.14,7.39]
[1758690919428,0.83611638,208.28,208.2,7.39]
[1758690919624,7.63,208.3,208.23,7.39]
[1758690920026,11.9494,208.3,208.23,7.39]
[1758690921027,7.63,208.3,208.23,7.39]
[1758690921329,7.63,208.3,208.25,8.6911111]
[1758690921520,0.83592558,208.31,208.26,7.39]
[1758690921725,0.83592558,208.31,208.25,8.6911111]
[1758690921926,5.15492558,208.31,208.25,8.6911111]
[1758690923331,4.319,208.31,208.25,8.6911111]
[1758690926228,23.05248088,208.34,208.25,7.39]
[1758690926229,4.3195,208.29,208.25,7.39]
[1758690926431,9.2011111,208.33,208.22,1.3011111]
[1758690926728,7.9,208.33,208.26,7.76]
[1758690928036,7.9,208.37,208.3,7.76]
[1758690930846,4.318,208.36,208.3,7.76]
[1758690931547,7.9,208.37,208.3,7.76]
[1758690931747,4.3175,208.39,208.33,7.76]
[1758690932638,8.73555428,208.41,208.34,1.3011111]
[1758690933242,8.73555428,208.41,208.35,1.3011111]
[1758690933448,7.9,208.41,208.35,1.3011111]
[1758690933950,4.3168,208.42,208.35,1.3011111]
[1758690934145,8.73542389,208.44,208.35,9.0611111]
[1758690934346,8.73542389,208.44,208.37,9.0611111]
[1758690935952,4.3165,208.43,208.37,7.76]
[1758690937948,4.317,208.41,208.37,7.76]
[1758690938153,4.317,208.41,208.34,1.3011111]
[1758690938352,7.9,208.42,208.33,7.76]
[1758690938948,7.9,208.42,208.35,1.3011111]
[1758690939158,7.9,208.42,208.36,7.76]
[1758690940143,0.83542389,208.44,208.37,1.3011111]
[1758690943450,0.83542389,208.44,208.36,7.76]
[1758690943752,9.2011111,208.41,208.32,9.0611111]
[1758690944149,7.9,208.41,208.32,9.0611111]
[1758690945355,7.9,208.41,208.33,1.3011111]
[1758690946950,7.9,208.38,208.28,7.76]
[1758690947159,7.9,208.35,208.28,7.76]
[1758690947654,9.2011111,208.35,208.28,7.76]
[1758690947853,67.1763,208.34,208.2,7.76]
[1758690948055,7.9,208.33,208.23,7.76]
[1758690948246,1.3011111,208.32,208.23,7.76]
[1758690948452,7.9,208.33,208.25,7.76]
[1758690949048,12.2188,208.33,208.25,7.76]
[1758690949246,7.9,208.33,208.25,7.76]
[1758690949652,4.3194,208.29,208.21,7.76]
[1758690949852,4.3194,208.29,208.21,128.4811111]
[1758690950055,1.3011111,208.3,208.21,7.76]
[1758690950263,7.9,208.29,208.21,7.76]
[1758690950461,7.9,208.29,208.21,9.0611111]
[1758690951158,12.2196,208.29,208.21,9.0611111]
[1758690951463,1.3011111,208.32,208.21,9.0611111]
[1758690951653,1.3011111,208.32,208.23,1.3011111]
[1758690952156,1.3011111,208.32,208.24,7.76]
[1758690952760,5.6201111,208.32,208.24,7.76]
[1758690953254,7.9,208.37,208.26,7.76]
[1758690953562,9.2011111,208.37,208.27,1.3011111]
[1758690953761,4.3182,208.36,208.27,1.3011111]
[1758690953962,7.9,208.37,208.29,1.3011111]
[1758690954150,7.9,208.37,208.3,7.42]
[1758690955455,1.3011111,208.36,208.27,1.3011111]
[1758690955664,7.42,208.35,208.27,1.3011111]
[1758690955960,7.42,208.35,208.26,123.32]
[1758690956168,7.42,208.35,208.26,127.64]
[1758690956357,7.42,208.35,208.28,7.42]
[1758690956760,5.6196111,208.34,208.26,115.9]
[1758690956961,7.42,208.33,208.26,115.9]
[1758690958066,1.3011111,208.36,208.27,8.7211111]
[1758690958764,4.3182,208.35,208.27,8.7211111]
[1758690960369,4.3186,208.33,208.27,7.42]
[1758690961462,67.1696,208.36,208.26,115.9]
[1758690961463,11.739,208.31,208.26,115.9]
[1758690961662,7.42,208.31,208.24,119.42]
[1758690961860,7.42,208.36,208.24,119.42]
[1758690962061,7.42,208.36,208.25,7.42]
[1758690962257,67.163,208.38,208.25,7.42]
[1758690962258,7.42,208.34,208.25,7.42]
[1758690963666,4.3188,208.32,208.25,7.42]
[1758690963865,7.42,208.34,208.25,7.42]